[Event "Early-Titled-Tuesday-Blitz-June-18-2024"]
[Site "Chess.com"]
[Date "2024.06.18"]
[Round "7"]
[White "FerAsensio2024"]
[Black "unbreakablepawn35"]
[Result "1/2-1/2"]
[WhiteElo "2522"]
[BlackElo "2400"]
[TimeControl "180+1"]
[EndTime "9:22:14 PDT"]
[Termination "Game drawn by stalemate"]

1. d4 {[%clk 0:02:54.6]} 1... Nf6 {[%clk 0:02:59.9]} 2. Nc3 {[%clk 0:02:54.7]}
2... d5 {[%clk 0:02:59.4]} 3. Bf4 {[%clk 0:02:55.1]} 3... g6 {[%clk 0:02:59.7]}
4. e3 {[%clk 0:02:55]} 4... Bg7 {[%clk 0:02:59.6]} 5. h4 {[%clk 0:02:55.6]} 5...
h5 {[%clk 0:02:59.2]} 6. Nf3 {[%clk 0:02:55.7]} 6... O-O {[%clk 0:02:59.3]} 7.
Ne5 {[%clk 0:02:56.2]} 7... c5 {[%clk 0:02:59.1]} 8. f3 {[%clk 0:02:55.9]} 8...
Nc6 {[%clk 0:02:53.7]} 9. Bb5 {[%clk 0:02:42.8]} 9... cxd4 {[%clk 0:02:29.6]}
10. exd4 {[%clk 0:02:43.7]} 10... Bd7 {[%clk 0:02:29.9]} 11. Qd2 {[%clk
0:02:29.3]} 11... a6 {[%clk 0:02:17.8]} 12. Bxc6 {[%clk 0:02:21]} 12... Bxc6
{[%clk 0:02:17.1]} 13. O-O {[%clk 0:02:08.9]} 13... Nd7 {[%clk 0:02:06.7]} 14.
Rfe1 {[%clk 0:01:52.6]} 14... e6 {[%clk 0:01:52.4]} 15. g3 {[%clk 0:01:08.9]}
15... Nxe5 {[%clk 0:01:36.8]} 16. Bxe5 {[%clk 0:01:09.8]} 16... f6 {[%clk
0:01:17]} 17. Bf4 {[%clk 0:01:08.9]} 17... Re8 {[%clk 0:01:14.8]} 18. Re2 {[%clk
0:00:34.2]} 18... e5 {[%clk 0:00:58.3]} 19. Be3 {[%clk 0:00:34.3]} 19... Qd7
{[%clk 0:00:46]} 20. Kh2 {[%clk 0:00:30.8]} 20... Rac8 {[%clk 0:00:36.5]} 21.
Rae1 {[%clk 0:00:30.6]} 21... e4 {[%clk 0:00:35.9]} 22. fxe4 {[%clk 0:00:29.9]}
22... dxe4 {[%clk 0:00:36.8]} 23. d5 {[%clk 0:00:26.3]} 23... Bb5 {[%clk
0:00:36.8]} 24. Nxb5 {[%clk 0:00:24.6]} 24... Qxb5 {[%clk 0:00:37.7]} 25. b3
{[%clk 0:00:22]} 25... f5 {[%clk 0:00:36.5]} 26. c4 {[%clk 0:00:22.2]} 26... Qd7
{[%clk 0:00:34.3]} 27. Bd4 {[%clk 0:00:15.2]} 27... b5 {[%clk 0:00:34.2]} 28.
Bxg7 {[%clk 0:00:14.9]} 28... Qxg7 {[%clk 0:00:30.2]} 29. Rc1 {[%clk 0:00:15.1]}
29... Qe5 {[%clk 0:00:28.4]} 30. c5 {[%clk 0:00:11.9]} 30... e3 {[%clk
0:00:28.4]} 31. Qd3 {[%clk 0:00:11.3]} 31... Red8 {[%clk 0:00:27.2]} 32. Qxe3
{[%clk 0:00:05.9]} 32... Qxe3 {[%clk 0:00:19.1]} 33. Rxe3 {[%clk 0:00:06.8]}
33... Rxd5 {[%clk 0:00:19.5]} 34. b4 {[%clk 0:00:05.9]} 34... Kf7 {[%clk
0:00:17.9]} 35. Rc2 {[%clk 0:00:03.9]} 35... Rc7 {[%clk 0:00:18.3]} 36. Kg2
{[%clk 0:00:04]} 36... Rd4 {[%clk 0:00:18.6]} 37. a3 {[%clk 0:00:03.9]} 37...
Kf6 {[%clk 0:00:17.4]} 38. Rce2 {[%clk 0:00:03.9]} 38... Kf7 {[%clk 0:00:17]}
39. Kf3 {[%clk 0:00:03.3]} 39... Rc4 {[%clk 0:00:17.5]} 40. Rd2 {[%clk
0:00:03.3]} 40... a5 {[%clk 0:00:17.5]} 41. bxa5 {[%clk 0:00:02.8]} 41... Ra4
{[%clk 0:00:17.9]} 42. Rd6 {[%clk 0:00:01.8]} 42... Rxa5 {[%clk 0:00:17.8]} 43.
Ree6 {[%clk 0:00:02.3]} 43... Rxa3+ {[%clk 0:00:18.4]} 44. Kf4 {[%clk
0:00:02.7]} 44... Ra4+ {[%clk 0:00:19]} 45. Kf3 {[%clk 0:00:02.6]} 45... Ra3+
{[%clk 0:00:18.9]} 46. Kf4 {[%clk 0:00:03.3]} 46... Rxc5 {[%clk 0:00:17.8]} 47.
Rf6+ {[%clk 0:00:03.5]} 47... Ke7 {[%clk 0:00:17.6]} 48. Rde6+ {[%clk
0:00:04.2]} 48... Kd7 {[%clk 0:00:18.1]} 49. Rd6+ {[%clk 0:00:02.8]} 49... Kc7
{[%clk 0:00:17.9]} 50. Rde6 {[%clk 0:00:02.8]} 50... Ra4+ {[%clk 0:00:18.1]} 51.
Kf3 {[%clk 0:00:03]} 51... Rc3+ {[%clk 0:00:17.4]} 52. Ke2 {[%clk 0:00:02.6]}
52... Ra2+ {[%clk 0:00:17.4]} 53. Kd1 {[%clk 0:00:02.9]} 53... Rd3+ {[%clk
0:00:17.7]} 54. Kc1 {[%clk 0:00:02.9]} 54... Rxg3 {[%clk 0:00:17.7]} 55. Re7+
{[%clk 0:00:02.7]} 55... Kd8 {[%clk 0:00:18.1]} 56. Re1 {[%clk 0:00:01.9]} 56...
Rc3+ {[%clk 0:00:16.8]} 57. Kb1 {[%clk 0:00:02.3]} 57... Ra7 {[%clk 0:00:13]}
58. Rxg6 {[%clk 0:00:01.9]} 58... Rd7 {[%clk 0:00:12.5]} 59. Rf1 {[%clk
0:00:01.8]} 59... Rc5 {[%clk 0:00:11.7]} 60. Rg5 {[%clk 0:00:02.1]} 60... Rf7
{[%clk 0:00:11.2]} 61. Rxh5 {[%clk 0:00:02.6]} 61... Kd7 {[%clk 0:00:11.1]} 62.
Rg5 {[%clk 0:00:03.2]} 62... Rc3 {[%clk 0:00:10.4]} 63. h5 {[%clk 0:00:03.3]}
63... Rh3 {[%clk 0:00:09.9]} 64. Rgxf5 {[%clk 0:00:03.7]} 64... Rxf5 {[%clk
0:00:09.8]} 65. Rxf5 {[%clk 0:00:04.6]} 65... Kc6 {[%clk 0:00:10.2]} 66. Kc2
{[%clk 0:00:04.7]} 66... Kb6 {[%clk 0:00:10.7]} 67. Kb2 {[%clk 0:00:04.9]} 67...
Ka5 {[%clk 0:00:11.2]} 68. Rg5 {[%clk 0:00:05.2]} 68... Ka4 {[%clk 0:00:11.3]}
69. Rg4+ {[%clk 0:00:05.7]} 69... b4 {[%clk 0:00:11.9]} 70. Rg2 {[%clk
0:00:02.2]} 70... Rxh5 {[%clk 0:00:11.2]} 71. Rf2 {[%clk 0:00:02.9]} 71... Rc5
{[%clk 0:00:11.2]} 72. Rg2 {[%clk 0:00:02.9]} 72... Rc3 {[%clk 0:00:11.7]} 73.
Rf2 {[%clk 0:00:03.1]} 73... Rb3+ {[%clk 0:00:12.1]} 74. Ka2 {[%clk 0:00:03.2]}
74... Ra3+ {[%clk 0:00:12.4]} 75. Kb2 {[%clk 0:00:03.5]} 75... Rd3 {[%clk
0:00:13.3]} 76. Rg2 {[%clk 0:00:03.4]} 76... Kb5 {[%clk 0:00:13.4]} 77. Rg5+
{[%clk 0:00:03.2]} 77... Kc4 {[%clk 0:00:14]} 78. Rg4+ {[%clk 0:00:03.8]} 78...
Kc5 {[%clk 0:00:13.4]} 79. Rg5+ {[%clk 0:00:04]} 79... Kb6 {[%clk 0:00:13.6]}
80. Kc2 {[%clk 0:00:03.8]} 80... Rc3+ {[%clk 0:00:13.7]} 81. Kb2 {[%clk
0:00:04.2]} 81... Rc5 {[%clk 0:00:14.2]} 82. Rxc5 {[%clk 0:00:03.9]} 82... Kxc5
{[%clk 0:00:15.1]} 83. Kb3 {[%clk 0:00:04.5]} 83... Kb5 {[%clk 0:00:16]} 84. Kb2
{[%clk 0:00:05.1]} 84... Kc4 {[%clk 0:00:16.9]} 85. Kc2 {[%clk 0:00:04.7]} 85...
Kc5 {[%clk 0:00:17.7]} 86. Kb3 {[%clk 0:00:04.7]} 86... Kb5 {[%clk 0:00:18.6]}
87. Kb2 {[%clk 0:00:03.4]} 87... Ka4 {[%clk 0:00:19.5]} 88. Ka2 {[%clk
0:00:03.6]} 88... Kb5 {[%clk 0:00:20.4]} 89. Kb3 {[%clk 0:00:03.8]} 89... Kc5
{[%clk 0:00:21.3]} 90. Kb2 {[%clk 0:00:04.1]} 90... Kc4 {[%clk 0:00:22.2]} 91.
Kc2 {[%clk 0:00:04.6]} 91... b3+ {[%clk 0:00:23.1]} 92. Kb2 {[%clk 0:00:04.2]}
92... Kb4 {[%clk 0:00:24]} 93. Kb1 {[%clk 0:00:04.2]} 93... Ka3 {[%clk 0:00:24]}
94. Ka1 {[%clk 0:00:04.5]} 94... Ka4 {[%clk 0:00:24.7]} 95. Kb2 {[%clk
0:00:04.7]} 95... Kb4 {[%clk 0:00:25.6]} 96. Kb1 {[%clk 0:00:05]} 96... Kc3
{[%clk 0:00:26.5]} 97. Kc1 {[%clk 0:00:05.2]} 97... b2+ {[%clk 0:00:27.4]} 98.
Kb1 {[%clk 0:00:05.6]} 98... Kb3 {[%clk 0:00:28.3]} 1/2-1/2

[Event "Early-Titled-Tuesday-Blitz-June-18-2024"]
[Site "Chess.com"]
[Date "2024.06.18"]
[Round "7"]
[White "AlexeiShirov"]
[Black "UF_10"]
[Result "1/2-1/2"]
[WhiteElo "2872"]
[BlackElo "2566"]
[TimeControl "180+1"]
[EndTime "9:22:16 PDT"]
[Termination "Game drawn by repetition"]

1. e4 {[%clk 0:03:00.9]} 1... e6 {[%clk 0:02:58.3]} 2. d4 {[%clk 0:02:59.9]}
2... d5 {[%clk 0:02:58]} 3. e5 {[%clk 0:02:59.2]} 3... c5 {[%clk 0:02:56.1]} 4.
c3 {[%clk 0:02:58.6]} 4... Qb6 {[%clk 0:02:51.3]} 5. Nf3 {[%clk 0:02:57.7]} 5...
Bd7 {[%clk 0:02:51.4]} 6. Be2 {[%clk 0:02:55.3]} 6... Bb5 {[%clk 0:02:50.2]} 7.
dxc5 {[%clk 0:02:54.8]} 7... Bxc5 {[%clk 0:02:44.1]} 8. b4 {[%clk 0:02:54.1]}
8... Bf8 {[%clk 0:02:31.2]} 9. O-O {[%clk 0:02:47.6]} 9... Bxe2 {[%clk
0:02:27.4]} 10. Qxe2 {[%clk 0:02:47]} 10... Ne7 {[%clk 0:02:25.8]} 11. Be3
{[%clk 0:02:43.8]} 11... Qc7 {[%clk 0:02:21.2]} 12. Na3 {[%clk 0:02:31.7]} 12...
a6 {[%clk 0:02:00.4]} 13. c4 {[%clk 0:02:31.1]} 13... Nbc6 {[%clk 0:01:53.5]}
14. Rac1 {[%clk 0:02:30.5]} 14... d4 {[%clk 0:01:23.4]} 15. Nxd4 {[%clk
0:02:20.7]} 15... Qxe5 {[%clk 0:00:59.8]} 16. Nf3 {[%clk 0:02:15.4]} 16... Qh5
{[%clk 0:00:59.7]} 17. b5 {[%clk 0:02:12.8]} 17... Ne5 {[%clk 0:00:57.1]} 18.
bxa6 {[%clk 0:02:07.6]} 18... bxa6 {[%clk 0:00:31.6]} 19. Nd4 {[%clk 0:01:50.6]}
19... Qxe2 {[%clk 0:00:26.3]} 20. Nxe2 {[%clk 0:01:50.1]} 20... Nf5 {[%clk
0:00:24.8]} 21. c5 {[%clk 0:01:47.7]} 21... Rc8 {[%clk 0:00:23.6]} 22. Nc4
{[%clk 0:01:32.3]} 22... Nxc4 {[%clk 0:00:22.3]} 23. Rxc4 {[%clk 0:01:31.2]}
23... Nxe3 {[%clk 0:00:22.6]} 24. fxe3 {[%clk 0:01:28.3]} 24... Rxc5 {[%clk
0:00:23.5]} 25. Ra4 {[%clk 0:01:27.7]} 25... a5 {[%clk 0:00:21.1]} 26. Rb1
{[%clk 0:01:27.1]} 26... Bd6 {[%clk 0:00:20.4]} 27. Nd4 {[%clk 0:01:17.4]} 27...
O-O {[%clk 0:00:19.3]} 28. Rb5 {[%clk 0:01:12.3]} 28... Rfc8 {[%clk 0:00:18]}
29. Raxa5 {[%clk 0:01:11]} 29... Rc1+ {[%clk 0:00:15.9]} 30. Kf2 {[%clk
0:01:10.8]} 30... Bxh2 {[%clk 0:00:15.7]} 31. Rb7 {[%clk 0:01:08.9]} 31... h6
{[%clk 0:00:14.5]} 32. Raa7 {[%clk 0:01:07.6]} 32... Rf8 {[%clk 0:00:12.3]} 33.
Ke2 {[%clk 0:01:07]} 33... Be5 {[%clk 0:00:11.7]} 34. Nf3 {[%clk 0:01:04.2]}
34... Bf6 {[%clk 0:00:11]} 35. Rc7 {[%clk 0:01:03.4]} 35... Rb1 {[%clk
0:00:10.3]} 36. Nd2 {[%clk 0:01:02.8]} 36... Rb2 {[%clk 0:00:09.9]} 37. Rcb7
{[%clk 0:00:59.8]} 37... Rc2 {[%clk 0:00:09.5]} 38. Kd3 {[%clk 0:00:56.5]} 38...
Rc3+ {[%clk 0:00:09]} 39. Ke2 {[%clk 0:00:56.4]} 39... Rd8 {[%clk 0:00:08.3]}
40. Ne4 {[%clk 0:00:55.8]} 40... Rc2+ {[%clk 0:00:08]} 41. Kf3 {[%clk
0:00:55.7]} 41... Rf8 {[%clk 0:00:07.3]} 42. Nxf6+ {[%clk 0:00:53.6]} 42... gxf6
{[%clk 0:00:08.2]} 43. a4 {[%clk 0:00:53.5]} 43... Kg7 {[%clk 0:00:06.3]} 44. a5
{[%clk 0:00:52.6]} 44... Kg6 {[%clk 0:00:06.7]} 45. a6 {[%clk 0:00:50]} 45...
Ra2 {[%clk 0:00:06.9]} 46. Rb6 {[%clk 0:00:48.6]} 46... Rd8 {[%clk 0:00:05.5]}
47. Rc7 {[%clk 0:00:47.1]} 47... Ra8 {[%clk 0:00:04.5]} 48. Rcc6 {[%clk
0:00:46.2]} 48... Ra5 {[%clk 0:00:04.4]} 49. Ke4 {[%clk 0:00:44.1]} 49... Ra4+
{[%clk 0:00:04.5]} 50. Kd3 {[%clk 0:00:43.7]} 50... Kf5 {[%clk 0:00:05]} 51. Kc3
{[%clk 0:00:37.8]} 51... Ra5 {[%clk 0:00:02.9]} 52. Kb4 {[%clk 0:00:37.3]} 52...
Ra1 {[%clk 0:00:03.2]} 53. Kc5 {[%clk 0:00:36.7]} 53... Rc1+ {[%clk 0:00:03.3]}
54. Kd6 {[%clk 0:00:36.5]} 54... Ra1 {[%clk 0:00:04]} 55. Ke7 {[%clk 0:00:36]}
55... Ra7+ {[%clk 0:00:04]} 56. Kf8 {[%clk 0:00:35.4]} 56... Ke4 {[%clk
0:00:04.5]} 57. Kg7 {[%clk 0:00:33.9]} 57... Kxe3 {[%clk 0:00:05]} 58. Kxf6
{[%clk 0:00:32.2]} 58... Kd4 {[%clk 0:00:05.5]} 59. Kg7 {[%clk 0:00:28.3]} 59...
Kd5 {[%clk 0:00:06]} 60. Kxh6 {[%clk 0:00:27.8]} 60... Rg1 {[%clk 0:00:06.2]}
61. Rd6+ {[%clk 0:00:26.6]} 61... Kc5 {[%clk 0:00:06.2]} 62. Rbc6+ {[%clk
0:00:26.1]} 62... Kb5 {[%clk 0:00:06.5]} 63. Rb6+ {[%clk 0:00:25.6]} 63... Ka5
{[%clk 0:00:07]} 64. Rb2 {[%clk 0:00:24.9]} 64... Ra1 {[%clk 0:00:05.6]} 65. Kg7
{[%clk 0:00:22.1]} 65... Rxa6 {[%clk 0:00:05.3]} 66. Rxa6+ {[%clk 0:00:21.7]}
66... Kxa6 {[%clk 0:00:06.2]} 67. Kxf7 {[%clk 0:00:21.6]} 67... Re1 {[%clk
0:00:06.3]} 68. g4 {[%clk 0:00:20.9]} 68... e5 {[%clk 0:00:06.7]} 69. g5 {[%clk
0:00:20.4]} 69... e4 {[%clk 0:00:07]} 70. g6 {[%clk 0:00:20.1]} 70... e3 {[%clk
0:00:07.3]} 71. g7 {[%clk 0:00:19.9]} 71... Rf1+ {[%clk 0:00:07.8]} 72. Kg8
{[%clk 0:00:19.4]} 72... Rf2 {[%clk 0:00:07.2]} 73. Rb1 {[%clk 0:00:18.1]} 73...
e2 {[%clk 0:00:07.3]} 74. Re1 {[%clk 0:00:17.9]} 74... Rg2 {[%clk 0:00:07]} 75.
Kf7 {[%clk 0:00:17.4]} 75... Rf2+ {[%clk 0:00:07.2]} 76. Kg6 {[%clk 0:00:17.2]}
76... Rg2+ {[%clk 0:00:07.8]} 77. Kf6 {[%clk 0:00:16.9]} 77... Rf2+ {[%clk
0:00:08.3]} 78. Ke5 {[%clk 0:00:16.7]} 78... Rg2 {[%clk 0:00:08.5]} 79. Kf6
{[%clk 0:00:16.6]} 79... Rf2+ {[%clk 0:00:08.6]} 80. Kg6 {[%clk 0:00:16.4]}
80... Rg2+ {[%clk 0:00:09.2]} 81. Kf7 {[%clk 0:00:16.1]} 81... Rf2+ {[%clk
0:00:09.6]} 82. Kg6 {[%clk 0:00:16.1]} 1/2-1/2

[Event "Early-Titled-Tuesday-Blitz-June-18-2024"]
[Site "Chess.com"]
[Date "2024.06.18"]
[Round "7"]
[White "Muracle"]
[Black "Losingexperience"]
[Result "1/2-1/2"]
[WhiteElo "2598"]
[BlackElo "2763"]
[TimeControl "180+1"]
[EndTime "9:22:26 PDT"]
[Termination "Game drawn by repetition"]

1. d4 {[%clk 0:03:00.9]} 1... Nf6 {[%clk 0:02:58.5]} 2. g3 {[%clk 0:03:00.2]}
2... g6 {[%clk 0:02:58.6]} 3. Bg2 {[%clk 0:03:00.3]} 3... Bg7 {[%clk 0:02:58.3]}
4. Nf3 {[%clk 0:03:00.8]} 4... O-O {[%clk 0:02:58.5]} 5. O-O {[%clk 0:03:01.3]}
5... d6 {[%clk 0:02:59.1]} 6. c4 {[%clk 0:03:01.4]} 6... Nbd7 {[%clk 0:02:58.7]}
7. Nc3 {[%clk 0:03:01]} 7... e5 {[%clk 0:02:58.9]} 8. e4 {[%clk 0:03:00.7]} 8...
exd4 {[%clk 0:02:59]} 9. Nxd4 {[%clk 0:03:01.6]} 9... Re8 {[%clk 0:02:59.2]} 10.
Re1 {[%clk 0:03:01.3]} 10... Nc5 {[%clk 0:02:59.5]} 11. h3 {[%clk 0:02:56.1]}
11... Bd7 {[%clk 0:02:59.3]} 12. Bg5 {[%clk 0:02:44.7]} 12... h6 {[%clk
0:02:56.5]} 13. Bf4 {[%clk 0:02:42.4]} 13... Nh5 {[%clk 0:02:40.9]} 14. Be3
{[%clk 0:02:39.3]} 14... Nf6 {[%clk 0:02:41.2]} 15. Qc2 {[%clk 0:02:30]} 15...
a5 {[%clk 0:02:32.9]} 16. Rad1 {[%clk 0:02:27.8]} 16... Qc8 {[%clk 0:02:33]} 17.
Kh2 {[%clk 0:02:26.5]} 17... Re5 {[%clk 0:02:32.1]} 18. g4 {[%clk 0:01:59.3]}
18... Bxg4 {[%clk 0:02:19.3]} 19. hxg4 {[%clk 0:01:57.4]} 19... Qxg4 {[%clk
0:02:20.2]} 20. f3 {[%clk 0:01:37.9]} 20... Rh5+ {[%clk 0:01:58.8]} 21. Kg1
{[%clk 0:01:36.3]} 21... Qg3 {[%clk 0:01:54.2]} 22. Qf2 {[%clk 0:01:31]} 22...
Qh2+ {[%clk 0:01:53.9]} 23. Kf1 {[%clk 0:01:30.8]} 23... Re8 {[%clk 0:01:30]}
24. Nde2 {[%clk 0:01:14.4]} 24... Ne6 {[%clk 0:00:43.9]} 25. Qg3 {[%clk
0:01:05.9]} 25... Nd7 {[%clk 0:00:09]} 26. Qxh2 {[%clk 0:01:04.8]} 26... Rxh2
{[%clk 0:00:09.9]} 27. Kg1 {[%clk 0:01:05.5]} 27... Rh5 {[%clk 0:00:09.6]} 28.
Ng3 {[%clk 0:01:04.5]} 28... Rh4 {[%clk 0:00:09.7]} 29. Rd2 {[%clk 0:00:57.8]}
29... Ne5 {[%clk 0:00:09.6]} 30. b3 {[%clk 0:00:15.1]} 30... Nxf3+ {[%clk
0:00:09.2]} 31. Bxf3 {[%clk 0:00:16]} 31... Bxc3 {[%clk 0:00:09.8]} 32. Red1
{[%clk 0:00:06.4]} 32... Bxd2 {[%clk 0:00:08.4]} 33. Rxd2 {[%clk 0:00:07.3]}
33... Ng5 {[%clk 0:00:07.4]} 34. Bg2 {[%clk 0:00:04]} 34... Rg4 {[%clk
0:00:06.2]} 35. Kf2 {[%clk 0:00:03.7]} 35... h5 {[%clk 0:00:05.5]} 36. Bf3
{[%clk 0:00:02.5]} 36... Rxg3 {[%clk 0:00:03.6]} 37. Kxg3 {[%clk 0:00:02.2]}
37... Nxe4+ {[%clk 0:00:04.4]} 38. Bxe4 {[%clk 0:00:02.2]} 38... Rxe4 {[%clk
0:00:05.3]} 39. Kf3 {[%clk 0:00:03.1]} 39... f5 {[%clk 0:00:05.2]} 40. Rd5
{[%clk 0:00:02]} 40... b6 {[%clk 0:00:05.4]} 41. Rd4 {[%clk 0:00:02.4]} 41...
Rxd4 {[%clk 0:00:04.8]} 42. Bxd4 {[%clk 0:00:03.3]} 42... Kf7 {[%clk 0:00:05.7]}
43. Kf4 {[%clk 0:00:03.4]} 43... Ke6 {[%clk 0:00:05.4]} 44. Kg5 {[%clk
0:00:03.5]} 44... c6 {[%clk 0:00:05.3]} 45. Bxb6 {[%clk 0:00:02.6]} 45... d5
{[%clk 0:00:05]} 46. cxd5+ {[%clk 0:00:02.6]} 46... Kxd5 {[%clk 0:00:04.9]} 47.
Kxg6 {[%clk 0:00:02.7]} 47... f4 {[%clk 0:00:05.2]} 48. Kxh5 {[%clk 0:00:02.9]}
48... Ke4 {[%clk 0:00:04.6]} 49. Kg4 {[%clk 0:00:03.2]} 49... a4 {[%clk
0:00:04.4]} 50. bxa4 {[%clk 0:00:02.8]} 50... c5 {[%clk 0:00:05.3]} 51. Bxc5
{[%clk 0:00:03]} 51... f3 {[%clk 0:00:05.9]} 52. Bf2 {[%clk 0:00:03.4]} 52...
Kd5 {[%clk 0:00:06.1]} 53. Kxf3 {[%clk 0:00:03.9]} 53... Kc6 {[%clk 0:00:07]}
54. Ke3 {[%clk 0:00:04.8]} 54... Kb7 {[%clk 0:00:07.9]} 55. Kd3 {[%clk
0:00:05.2]} 55... Ka8 {[%clk 0:00:08.8]} 56. Kc3 {[%clk 0:00:05.7]} 56... Kb8
{[%clk 0:00:09.7]} 57. Kb3 {[%clk 0:00:06.4]} 57... Ka8 {[%clk 0:00:10.6]} 58.
Kb4 {[%clk 0:00:07.3]} 58... Kb8 {[%clk 0:00:11.5]} 59. a3 {[%clk 0:00:08]}
59... Ka8 {[%clk 0:00:12.2]} 60. a5 {[%clk 0:00:07]} 60... Kb8 {[%clk
0:00:13.1]} 61. Ka4 {[%clk 0:00:07.9]} 61... Ka8 {[%clk 0:00:14]} 62. Kb5 {[%clk
0:00:08.8]} 62... Kb8 {[%clk 0:00:14.8]} 63. Kb4 {[%clk 0:00:09.7]} 63... Ka8
{[%clk 0:00:14.4]} 64. a6 {[%clk 0:00:10.4]} 64... Kb8 {[%clk 0:00:15.1]} 65.
Kb5 {[%clk 0:00:11.3]} 65... Ka8 {[%clk 0:00:16]} 66. Kb6 {[%clk 0:00:12.2]}
66... Kb8 {[%clk 0:00:16.3]} 67. Be1 {[%clk 0:00:13.1]} 67... Ka8 {[%clk
0:00:17.2]} 68. Bd2 {[%clk 0:00:14]} 68... Kb8 {[%clk 0:00:18]} 69. Bc3 {[%clk
0:00:14.9]} 69... Ka8 {[%clk 0:00:18.9]} 70. Bb4 {[%clk 0:00:15.8]} 70... Kb8
{[%clk 0:00:19.8]} 71. a4 {[%clk 0:00:16.7]} 71... Ka8 {[%clk 0:00:20.6]} 72. a5
{[%clk 0:00:17.6]} 72... Kb8 {[%clk 0:00:21.4]} 73. Kb5 {[%clk 0:00:18.5]} 73...
Ka8 {[%clk 0:00:22.3]} 74. Ka4 {[%clk 0:00:19.4]} 74... Kb8 {[%clk 0:00:23]} 75.
Bc5 {[%clk 0:00:20.3]} 75... Ka8 {[%clk 0:00:23.9]} 76. Kb5 {[%clk 0:00:21.2]}
76... Kb8 {[%clk 0:00:24.8]} 77. Kc6 {[%clk 0:00:20.4]} 77... Ka8 {[%clk
0:00:25.7]} 78. Bb4 {[%clk 0:00:19.8]} 78... Ka7 {[%clk 0:00:26.6]} 79. Kc7
{[%clk 0:00:17]} 79... Ka8 {[%clk 0:00:27.5]} 80. Kc8 {[%clk 0:00:17]} 80... Ka7
{[%clk 0:00:27.7]} 81. Be1 {[%clk 0:00:08.8]} 81... Ka8 {[%clk 0:00:28.6]} 82.
Kd7 {[%clk 0:00:08.6]} 82... Ka7 {[%clk 0:00:28.7]} 83. Kc6 {[%clk 0:00:06.4]}
83... Ka8 {[%clk 0:00:29.6]} 84. Bf2 {[%clk 0:00:06.5]} 84... Kb8 {[%clk
0:00:30]} 85. Kd7 {[%clk 0:00:05.4]} 85... Ka8 {[%clk 0:00:30.9]} 86. Bc5 {[%clk
0:00:04.9]} 86... Kb8 {[%clk 0:00:31.1]} 87. Kc6 {[%clk 0:00:03.2]} 87... Ka8
{[%clk 0:00:32]} 88. Bb6 {[%clk 0:00:03.1]} 88... Kb8 {[%clk 0:00:32.1]} 89.
Bc7+ {[%clk 0:00:02.6]} 89... Ka8 {[%clk 0:00:33]} 90. Kd7 {[%clk 0:00:02.6]}
90... Ka7 {[%clk 0:00:32.9]} 91. Kc8 {[%clk 0:00:02.9]} 91... Ka8 {[%clk
0:00:33.8]} 92. Kd7 {[%clk 0:00:01.4]} 92... Ka7 {[%clk 0:00:33.9]} 93. Bb6+
{[%clk 0:00:02.1]} 93... Ka8 {[%clk 0:00:34.8]} 94. Kc6 {[%clk 0:00:02.7]} 94...
Kb8 {[%clk 0:00:33.2]} 95. Bc5 {[%clk 0:00:02.4]} 1/2-1/2

[Event "Early-Titled-Tuesday-Blitz-June-18-2024"]
[Site "Chess.com"]
[Date "2024.06.18"]
[Round "8"]
[White "bazar-wokzal"]
[Black "FXDon77"]
[Result "1-0"]
[WhiteElo "2601"]
[BlackElo "2854"]
[TimeControl "180+1"]
[EndTime "9:25:15 PDT"]
[Termination "bazar-wokzal won by resignation"]

1. e4 {[%clk 0:02:52.2]} 1... c5 {[%clk 0:02:59.3]} 2. c3 {[%clk 0:02:52.1]}
2... e6 {[%clk 0:02:57.8]} 3. d4 {[%clk 0:02:51.8]} 3... d5 {[%clk 0:02:58.3]}
4. exd5 {[%clk 0:02:49.7]} 4... Qxd5 {[%clk 0:02:57.6]} 5. Nf3 {[%clk
0:02:49.6]} 5... Nc6 {[%clk 0:02:53]} 6. a3 {[%clk 0:02:47.5]} 6... Nf6 {[%clk
0:02:51.2]} 7. Be3 {[%clk 0:02:47.7]} 7... cxd4 {[%clk 0:02:47.3]} 8. cxd4
{[%clk 0:02:48.6]} 8... a6 {[%clk 0:02:46.5]} 9. Nc3 {[%clk 0:02:48.7]} 9... Qd6
{[%clk 0:02:46.6]} 10. Bd3 {[%clk 0:02:49.3]} 10... Be7 {[%clk 0:02:46.8]} 11.
Qc2 {[%clk 0:02:49.6]} 11... h6 {[%clk 0:02:46.5]} 12. O-O {[%clk 0:02:49.4]}
12... O-O {[%clk 0:02:46.6]} 13. Rac1 {[%clk 0:02:46.7]} 13... Bd7 {[%clk
0:02:45.7]} 14. Qd2 {[%clk 0:02:43.1]} 14... Rfd8 {[%clk 0:02:16.3]} 15. Bf4
{[%clk 0:02:41.8]} 1-0

[Event "Early-Titled-Tuesday-Blitz-June-18-2024"]
[Site "Chess.com"]
[Date "2024.06.18"]
[Round "8"]
[White "FMalexhdez"]
[Black "Smiechu"]
[Result "0-1"]
[WhiteElo "2280"]
[BlackElo "2348"]
[TimeControl "180+1"]
[EndTime "9:25:31 PDT"]
[Termination "Smiechu won by resignation"]

1. e4 {[%clk 0:02:56.3]} 1... c5 {[%clk 0:02:59.2]} 2. Nf3 {[%clk 0:02:56.3]}
2... g6 {[%clk 0:02:59.3]} 3. d4 {[%clk 0:02:55.9]} 3... cxd4 {[%clk 0:03:00.2]}
4. Nxd4 {[%clk 0:02:56.2]} 4... Nc6 {[%clk 0:03:00.8]} 5. Nc3 {[%clk 0:02:56.4]}
5... Bg7 {[%clk 0:03:01.5]} 6. Nb3 {[%clk 0:02:56.5]} 6... Nf6 {[%clk
0:03:01.7]} 7. Be2 {[%clk 0:02:57.1]} 7... O-O {[%clk 0:03:02.3]} 8. O-O {[%clk
0:02:57.6]} 8... d6 {[%clk 0:03:03]} 9. Re1 {[%clk 0:02:57.8]} 9... Bd7 {[%clk
0:03:02.9]} 10. Bf1 {[%clk 0:02:58.2]} 10... Rc8 {[%clk 0:03:03.5]} 11. Nd5
{[%clk 0:02:57.7]} 11... Ne5 {[%clk 0:03:00]} 12. c3 {[%clk 0:02:54.3]} 12...
Bc6 {[%clk 0:02:59.8]} 13. Bg5 {[%clk 0:02:51]} 13... Ned7 {[%clk 0:02:59.2]}
14. Nd4 {[%clk 0:02:43.2]} 14... Bxd5 {[%clk 0:02:55.4]} 15. exd5 {[%clk
0:02:42.5]} 15... Nxd5 {[%clk 0:02:55.6]} 16. c4 {[%clk 0:02:42.6]} 16... N5f6
{[%clk 0:02:55.4]} 17. g3 {[%clk 0:02:32.6]} 17... Re8 {[%clk 0:02:48.4]} 18.
Bg2 {[%clk 0:02:29.3]} 18... Rxc4 {[%clk 0:02:46.1]} 19. Bxb7 {[%clk 0:02:26.5]}
19... Qb6 {[%clk 0:02:44.3]} 20. Nc6 {[%clk 0:02:11.5]} 20... Rxc6 {[%clk
0:02:38.8]} 21. Bxc6 {[%clk 0:02:10.8]} 21... Qxc6 {[%clk 0:02:39.7]} 22. Rc1
{[%clk 0:02:08.3]} 22... Qb5 {[%clk 0:02:39.2]} 23. Qd4 {[%clk 0:02:04]} 23...
Qxg5 {[%clk 0:02:37.5]} 0-1